bitfinex-derivatives/quotes_BTCF0:USTF0_20250422
["timestamp","ask_amount","ask_price","bid_price","bid_amount"]
[1745352568802,0.20436459,91434.0,91433.0,0.0758]
[1745352569095,0.20436459,91434.0,91433.0,0.003]
[1745352569295,0.03304817,91435.0,91433.0,0.07372]
[1745352569495,0.1093006,91434.0,91433.0,0.07472]
[1745352571292,0.2086006,91434.0,91433.0,0.07472]
[1745352572093,0.2086006,91434.0,91433.0,0.07572]
[1745352572598,0.2086006,91434.0,91433.0,0.07472]
[1745352572792,0.3121006,91434.0,91433.0,0.07372]
[1745352573901,0.3121006,91434.0,91433.0,0.07472]
[1745352574290,0.3121006,91434.0,91433.0,0.002]
[1745352574490,0.3121006,91434.0,91433.0,0.07410381]
[1745352575593,0.3121006,91434.0,91433.0,0.07472]
[1745352576297,0.3121006,91434.0,91433.0,0.07372]
[1745352576497,0.3121006,91434.0,91433.0,0.06005517]
[1745352576693,0.3121006,91434.0,91433.0,0.05905517]
[1745352577303,0.3121006,91434.0,91433.0,0.0399244]
[1745352577504,0.1093198,91418.0,91415.0,0.36096399]
[1745352577796,0.1093198,91418.0,91417.0,0.0776425]
[1745352578191,0.3013198,91418.0,91417.0,0.0776425]
[1745352578696,0.3990198,91418.0,91417.0,0.0816425]
[1745352579402,0.3980198,91418.0,91417.0,0.0786425]
[1745352581899,0.3980198,91418.0,91417.0,0.0796425]
[1745352586002,0.3980198,91418.0,91417.0,0.0069225]
[1745352593193,0.4911198,91418.0,91417.0,0.0069225]
[1745352593702,0.4911198,91418.0,91416.0,0.0985]
[1745352593703,0.109321,91417.0,91416.0,0.09175425]
[1745352593899,0.470121,91417.0,91416.0,0.09175425]
[1745352594095,0.662121,91417.0,91416.0,0.09175425]
[1745352594908,0.662121,91417.0,91416.0,0.09375425]
[1745352600309,0.1093281,91411.0,91410.0,0.07276]
[1745352600504,0.1093281,91411.0,91410.0,0.07192399]
[1745352601199,0.3013281,91411.0,91410.0,0.07192399]
[1745352601401,0.3013281,91411.0,91410.0,0.07492399]
[1745352602111,0.3013281,91411.0,91410.0,0.07692399]
[1745352602409,0.0546518,91432.0,91410.0,0.05068039]
[1745352602710,0.0546518,91432.0,91411.0,0.096]
[1745352602711,0.1093269,91412.0,91411.0,0.096]
[1745352602911,0.1093269,91412.0,91411.0,0.2895]
[1745352603509,0.1093269,91412.0,91411.0,0.27583226]
[1745352604709,0.1093269,91412.0,91411.0,0.27883226]
[1745352611121,0.2935269,91412.0,91411.0,0.27883226]
[1745352612219,0.2935269,91412.0,91411.0,0.08533226]
[1745352614915,0.1093269,91412.0,91411.0,0.08533226]
[1745352622111,0.2083269,91412.0,91411.0,0.08533226]
[1745352622712,0.1093269,91412.0,91411.0,0.08533226]
[1745352626019,0.2067269,91412.0,91411.0,0.08533226]
[1745352628228,0.2976269,91412.0,91411.0,0.08533226]
[1745352628918,0.005,91439.0,91411.0,0.33533226]
[1745352629119,0.0955,91433.0,91425.0,0.1]
[1745352629319,0.1093021,91433.0,91430.0,0.3608]
[1745352629627,0.109303,91432.0,91431.0,0.0956]
[1745352629829,0.109303,91432.0,91431.0,0.0936]
[1745352631728,0.202303,91432.0,91431.0,0.0936]
[1745352632317,0.203303,91432.0,91431.0,0.0936]
[1745352632521,0.204303,91432.0,91431.0,0.0936]
[1745352633619,0.205303,91432.0,91431.0,0.0936]
[1745352634424,0.205303,91432.0,91431.0,0.06736166]
[1745352634630,0.205303,91432.0,91431.0,0.05369586]
[1745352635330,0.1093042,91431.0,91430.0,0.43344]
[1745352635631,0.2037042,91431.0,91430.0,0.43344]
[1745352635824,0.2037042,91431.0,91430.0,0.07264]
[1745352636127,0.4860042,91431.0,91430.0,0.07264]
[1745352636620,0.4880042,91431.0,91430.0,0.07264]
[1745352636930,0.4900042,91431.0,91430.0,0.07264]
[1745352638431,0.4890042,91431.0,91430.0,0.07264]
[1745352638620,0.4870042,91431.0,91430.0,0.07264]
[1745352639229,0.5770042,91431.0,91430.0,0.07264]
[1745352641016,0.1093126,91424.0,91423.0,0.0885]
[1745352641230,0.1093126,91424.0,91423.0,0.16114]
[1745352641426,0.2865126,91424.0,91423.0,0.16114]
[1745352641625,0.2865126,91424.0,91423.0,0.24824]
[1745352642521,0.2865126,91424.0,91423.0,0.22200128]
[1745352645122,0.2865126,91424.0,91423.0,0.15974]
[1745352645827,0.2865126,91424.0,91423.0,0.0871]
[1745352646032,0.1093138,91423.0,91417.0,0.07264]
[1745352646326,0.1093174,91420.0,91419.0,0.34729665]
[1745352647223,0.4826174,91420.0,91419.0,0.34729665]
[1745352647425,0.0546625,91414.0,91411.0,0.3608]
[1745352647626,0.1093269,91412.0,91411.0,0.3608]
[1745352648231,0.4826269,91412.0,91411.0,0.3608]
[1745352648625,0.4826269,91412.0,91411.0,0.3638]
[1745352649032,0.4826269,91412.0,91411.0,0.3668]
[1745352649430,0.4826269,91412.0,91411.0,0.006]
[1745352650635,0.1093293,91410.0,91409.0,0.05255768]
[1745352651636,0.1103293,91410.0,91409.0,0.06055768]
[1745352652136,0.3023293,91410.0,91409.0,0.06055768]
[1745352654936,0.4896293,91410.0,91409.0,0.06055768]
[1745352655136,0.2976293,91410.0,91409.0,0.06055768]
[1745352655728,0.2976293,91410.0,91409.0,0.04962176]
[1745352655931,0.2976293,91410.0,91409.0,0.008]
[1745352656527,0.1093305,91409.0,91408.0,0.08233035]
[1745352656931,0.2873305,91409.0,91408.0,0.08233035]
[1745352657724,0.2873305,91409.0,91408.0,0.08533035]
[1745352658331,0.2883305,91409.0,91408.0,0.08733035]
[1745352658537,0.2883305,91409.0,91408.0,0.06108461]
[1745352659126,0.4803305,91409.0,91408.0,0.05808461]
[1745352659431,0.4833305,91409.0,91408.0,0.05708461]
[1745352660336,0.2913305,91409.0,91408.0,0.05708461]
[1745352660837,1.06563051,91409.0,91408.0,0.001]
[1745352661040,0.1093401,91401.0,91400.0,0.10016408]
[1745352661236,0.8850401,91401.0,91400.0,0.10016408]
[1745352661535,1.2444481,91401.0,91400.0,8e-08]
[1745352661932,1.4243481,91401.0,91400.0,8e-08]
[1745352662128,0.1093688,91377.0,91376.0,0.07958545]
[1745352662734,0.1093688,91377.0,91376.0,0.09040603]
[1745352662930,0.4154794,91386.0,91376.0,0.09040603]
[1745352663131,0.1093659,91380.0,91376.0,0.3836639]
[1745352663435,0.0546774,91389.0,91376.0,0.3836639]
[1745352663637,0.0546774,91389.0,91388.0,0.3608]
[1745352665136,0.2349774,91389.0,91388.0,0.3608]
[1745352665332,0.1093666,91379.0,91376.0,0.3906639]
[1745352665634,0.1093666,91379.0,91376.0,0.17590603]
[1745352666026,0.1793,91384.0,91376.0,0.36790603]
[1745352666234,0.1093688,91377.0,91376.0,0.36790603]
[1745352667226,0.1093688,91377.0,91376.0,0.17890603]
[1745352668030,0.1113688,91377.0,91376.0,0.16496702]
[1745352668632,0.1123688,91377.0,91376.0,0.16496702]
[1745352669336,0.003,91377.0,91376.0,0.16496702]
[1745352669535,0.003,91377.0,91376.0,0.26496702]
[1745352669930,0.003,91377.0,91376.0,0.33756702]
[1745352670138,0.003,91377.0,91376.0,0.52956702]
[1745352674538,0.003,91377.0,91376.0,0.51862889]
[1745352675147,0.00016408,91390.0,91376.0,0.87806489]
[1745352675337,0.13783266,91395.0,91389.0,0.3608]
[1745352675638,0.4149,91408.0,91391.0,0.3608]
[1745352675639,0.13783266,91396.0,91391.0,0.3608]
[1745352675841,0.16539919,91407.0,91391.0,0.3608]
[1745352675842,0.16539919,91407.0,91395.0,0.1]
[1745352676051,0.16539919,91407.0,91406.0,0.3608]
[1745352676238,0.00546,91418.0,91406.0,0.7216]
[1745352676542,0.054663,91413.0,91407.0,0.1719]
[1745352676839,0.1093286,91411.0,91407.0,0.1719]
[1745352677044,0.1093282,91411.0,91407.0,0.1709]
[1745352677233,0.1093299,91410.0,91407.0,0.1709]
[1745352677434,0.1093286,91411.0,91407.0,0.1709]
[1745352677633,0.2353635,91412.0,91408.0,0.0869]
[1745352677634,0.0959,91409.0,91408.0,0.0869]
[1745352678031,0.0959,91409.0,91408.0,0.1779]
[1745352678442,0.0969,91409.0,91408.0,0.1779]
[1745352678636,0.0959,91409.0,91408.0,0.1779]
[1745352679833,0.0949,91409.0,91408.0,0.1779]
[1745352680139,0.0959,91409.0,91408.0,0.1799]
[1745352680737,0.0959,91409.0,91408.0,0.16896524]
[1745352682550,0.0959,91409.0,91408.0,0.15529678]
[1745352683051,0.0949,91409.0,91408.0,0.15529678]
[1745352683347,0.0959,91409.0,91408.0,0.15529678]
[1745352683542,0.0949,91409.0,91408.0,0.15329678]
[1745352683847,0.0959,91409.0,91408.0,0.15529678]
[1745352686049,0.2052305,91409.0,91408.0,0.06429678]
[1745352686253,0.2052305,91409.0,91408.0,0.002]
[1745352687257,0.1093329,91407.0,91406.0,0.71266516]
[1745352688451,0.2913329,91407.0,91406.0,0.35486516]
[1745352689843,0.2923329,91407.0,91406.0,0.3286194]
[1745352690042,0.1093425,91399.0,91398.0,0.00016408]
[1745352690246,0.1093425,91399.0,91398.0,0.07264408]
[1745352690847,0.2856425,91399.0,91398.0,0.07264408]
[1745352691250,0.2866425,91399.0,91398.0,0.07264408]
[1745352691746,0.2876425,91399.0,91398.0,0.07364408]
[1745352692147,0.1783,91399.0,91398.0,0.43444408]
[1745352692948,0.0869,91399.0,91398.0,0.43444408]
[1745352693253,0.0859,91399.0,91398.0,0.43444408]
[1745352693444,0.0869,91399.0,91398.0,0.43444408]
[1745352693646,0.0869,91399.0,91398.0,0.43344408]
[1745352694252,0.0859,91399.0,91398.0,0.43344408]
[1745352694452,0.0869,91399.0,91398.0,0.43344408]
[1745352694651,0.1962425,91399.0,91398.0,0.43344408]
[1745352695253,0.2857425,91399.0,91398.0,0.43344408]
[1745352695848,0.2847425,91399.0,91398.0,0.43344408]
[1745352696049,0.2857425,91399.0,91398.0,0.43344408]
[1745352697057,0.2857425,91399.0,91398.0,0.07248]
[1745352697259,0.2857425,91399.0,91398.0,0.06170779]
[1745352699952,0.2847425,91399.0,91398.0,0.06170779]
[1745352700148,0.2857425,91399.0,91398.0,0.06170779]
[1745352700755,0.2847425,91399.0,91398.0,0.06170779]
[1745352700955,0.2857425,91399.0,91398.0,0.06170779]
[1745352702253,0.2847425,91399.0,91398.0,0.06170779]
[1745352702454,0.2857425,91399.0,91398.0,0.06170779]
[1745352703657,0.2857425,91399.0,91398.0,0.0507715]
[1745352703858,0.2847425,91399.0,91398.0,0.0507715]
[1745352704058,0.2857425,91399.0,91398.0,0.0507715]
[1745352704559,0.5457425,91399.0,91398.0,0.0507715]
[1745352706166,0.1093449,91397.0,91087.0,0.00494033]
[1745352706463,0.1093533,91390.0,91377.0,0.2723]
[1745352706652,0.3493533,91390.0,91381.0,0.07252]
[1745352707255,0.7116533,91390.0,91381.0,0.07252]
[1745352707560,0.7116533,91390.0,91382.0,0.084]
[1745352707759,0.7116533,91390.0,91386.0,0.084]
[1745352708166,0.1093557,91388.0,91387.0,0.0831]
[1745352708358,0.3793557,91388.0,91387.0,0.0831]
[1745352708558,0.5493557,91388.0,91387.0,0.0831]
[1745352708959,0.5493557,91388.0,91387.0,0.1696]
[1745352709857,0.5503557,91388.0,91387.0,0.1696]
[1745352710061,0.5503557,91388.0,91387.0,0.15866211]
[1745352710963,0.5513557,91388.0,91387.0,0.15866211]
[1745352711474,0.5513557,91388.0,91387.0,0.07216211]
[1745352712572,0.442,91388.0,91381.0,0.07252]
[1745352712767,0.109358,91386.0,91381.0,0.0848]
[1745352712975,0.349358,91386.0,91382.0,0.07252]
[1745352713271,0.517758,91386.0,91382.0,0.07252]
[1745352714562,0.518758,91386.0,91382.0,0.07252]
[1745352714771,0.519758,91386.0,91382.0,0.07252]
[1745352715158,0.519758,91386.0,91381.0,0.0848]
[1745352716467,0.519758,91386.0,91385.0,0.34986178]
[1745352718068,0.519758,91386.0,91385.0,0.33618901]
[1745352719778,0.1093652,91380.0,91379.0,0.07252]
[1745352720081,0.3593652,91380.0,91379.0,0.04626715]
[1745352720964,0.3603652,91380.0,91379.0,0.02712213]
[1745352721173,0.5523652,91380.0,91379.0,0.02712213]
[1745352722174,0.3603652,91380.0,91379.0,0.02712213]
[1745352722568,0.3603652,91380.0,91379.0,0.01618241]
[1745352722969,0.3613652,91380.0,91379.0,0.01618241]
[1745352723469,0.1093712,91375.0,91374.0,0.01122914]
[1745352723670,0.1093772,91370.0,91369.0,0.07244]
[1745352723973,0.3993772,91370.0,91369.0,0.07244]
[1745352724566,0.1093832,91365.0,91364.0,0.3608]
[1745352724773,0.3793832,91365.0,91364.0,0.14635056]
[1745352724980,0.3793832,91365.0,91355.0,0.07244]
[1745352724981,0.1093856,91363.0,91355.0,0.07244]
[1745352725179,0.4093856,91363.0,91355.0,0.08072456]
[1745352725572,0.4093856,91363.0,91358.0,0.01089608]
[1745352727078,0.4113856,91363.0,91358.0,0.01089608]
[1745352727973,0.4133856,91363.0,91358.0,0.01089608]
[1745352729680,0.9377416,91363.0,91362.0,6e-08]
[1745352730080,0.9377416,91363.0,91350.0,0.01087509]
[1745352730386,0.4701916,91358.0,91357.0,0.00098643]
[1745352730575,0.7601916,91358.0,91357.0,0.00098643]
[1745352731070,0.9521916,91358.0,91357.0,0.00098643]
[1745352731772,0.9531916,91358.0,91357.0,0.00098643]
[1745352733074,0.9541916,91358.0,91357.0,0.00098643]
[1745352734282,0.7621916,91358.0,91357.0,0.00098643]
[1745352735387,1.1770916,91358.0,91357.0,0.00098643]
[1745352737082,0.8162916,91358.0,91357.0,0.00098643]
[1745352737685,0.1094023,91349.0,91348.0,0.00108479]
[1745352737881,0.1094131,91340.0,91339.0,0.56855787]
[1745352738070,0.3794131,91340.0,91339.0,0.5528]
[1745352739483,0.3814131,91340.0,91339.0,0.5528]
[1745352739678,0.3814131,91340.0,91339.0,0.62528]
[1745352740172,0.3834131,91340.0,91339.0,0.62528]
[1745352740578,0.3834131,91340.0,91339.0,0.63337489]
[1745352741575,0.3834131,91340.0,91339.0,0.56089489]
[1745352741776,0.3834131,91340.0,91339.0,0.63337489]
[1745352742287,0.3834131,91340.0,91339.0,0.64416664]
[1745352742583,0.7442131,91340.0,91339.0,0.23821792]
[1745352742789,0.7442131,91340.0,91339.0,0.16573792]
[1745352743179,0.1094227,91332.0,91331.0,0.07248]
[1745352743375,0.3694227,91332.0,91331.0,0.08082847]
[1745352743674,0.3694227,91332.0,91331.0,0.09195791]
[1745352744287,0.3694227,91332.0,91331.0,0.08101373]
[1745352744476,0.3714227,91332.0,91331.0,0.08101373]
[1745352745786,0.3734227,91332.0,91331.0,0.08101373]
[1745352747887,0.0547125,91331.0,91320.0,0.07248]
[1745352748087,0.1094275,91328.0,91320.0,0.07248]
[1745352748291,0.3794275,91328.0,91320.0,0.07248]
[1745352748494,0.3794275,91328.0,91310.0,0.56855787]
[1745352748791,0.3794275,91328.0,91327.0,0.01606541]
[1745352750686,0.3804275,91328.0,91327.0,0.01606541]
[1745352751091,0.3814275,91328.0,91327.0,0.01606541]
[1745352751793,0.272,91328.0,91327.0,0.01606541]
[1745352752183,0.272,91328.0,91327.0,0.29438529]
[1745352752386,0.272,91328.0,91327.0,0.401496]
[1745352753087,0.272,91328.0,91327.0,0.41271842]
[1745352753888,0.3814275,91328.0,91327.0,0.41271842]
[1745352754991,0.3814275,91328.0,91327.0,0.31271842]
[1745352755194,0.3814275,91328.0,91327.0,0.01122242]
[1745352755395,0.1094299,91326.0,91325.0,0.2644]
[1745352755691,0.3894299,91326.0,91325.0,0.27514211]
[1745352756497,0.3914299,91326.0,91325.0,0.27514211]
[1745352756688,0.3934299,91326.0,91325.0,0.27514211]
[1745352757289,0.3934299,91326.0,91325.0,0.20274211]
[1745352758187,0.3934299,91326.0,91325.0,0.01074211]
[1745352758388,0.3934299,91326.0,91314.0,0.0846]
[1745352758389,0.1094431,91315.0,91314.0,0.0846]
[1745352758695,0.3594431,91315.0,91314.0,0.0846]
[1745352758887,0.3594431,91315.0,91314.0,0.09269356]
[1745352759682,0.3634431,91315.0,91314.0,0.09269356]
[1745352759883,0.3634431,91315.0,91314.0,0.17329356]
[1745352760283,0.254,91315.0,91314.0,0.17329356]
[1745352760488,0.254,91315.0,91314.0,0.36330556]
[1745352760690,0.14571051,91333.0,91314.0,0.71330556]
[1745352760982,0.05871979,91333.0,91332.0,0.4608]
[1745352761186,0.05871979,91333.0,91332.0,0.5332]
[1745352761394,0.05871979,91333.0,91332.0,0.64269199]
[1745352761788,0.3,91333.0,91332.0,0.89269199]
[1745352762292,0.3,91333.0,91332.0,0.83469199]
[1745352762591,0.301,91333.0,91332.0,0.83469199]
[1745352762793,0.302,91333.0,91332.0,0.83469199]
[1745352763585,0.302,91333.0,91332.0,0.83669199]
[1745352768812,0.4114215,91333.0,91332.0,0.6548]
[1745352768994,0.5660215,91333.0,91332.0,0.194]
[1745352769190,0.1094419,91316.0,91315.0,0.1645]
[1745352769493,0.3894419,91316.0,91315.0,0.1645]
[1745352769796,0.28,91316.0,91315.0,0.1645]
[1745352769998,0.28,91316.0,91315.0,0.2414]
[1745352770196,0.28,91316.0,91315.0,0.42245535]
[1745352770499,0.282,91316.0,91315.0,0.53396735]
[1745352770701,0.284,91316.0,91315.0,0.53396735]
[1745352770893,0.184,91316.0,91315.0,0.53396735]
[1745352771906,0.134,91316.0,91315.0,0.53396735]
[1745352772901,0.134,91316.0,91315.0,0.61380735]
[1745352773096,0.134,91316.0,91315.0,0.50429535]
[1745352773600,0.134,91316.0,91315.0,0.61380735]
[1745352773803,0.12852804,91316.0,91315.0,0.53396735]
[1745352774000,0.00016417,91338.0,91315.0,0.53396735]
[1745352774001,0.00016417,91338.0,91315.0,0.86380735]
[1745352774195,0.26,91335.0,91325.0,0.20775787]
[1745352774503,0.26,91335.0,91326.0,0.1691]
[1745352775002,0.26,91335.0,91330.0,0.1]
[1745352775193,0.261,91335.0,91331.0,0.0601]
[1745352775596,0.1094239,91331.0,91330.0,0.1]
[1745352775799,0.3494239,91331.0,91330.0,0.17984]
[1745352776298,0.3494239,91331.0,91330.0,0.16894]
[1745352776791,0.3494239,91331.0,91330.0,0.17094]
[1745352776996,0.3504239,91331.0,91330.0,0.17094]
[1745352777200,0.4068239,91331.0,91330.0,0.18184]
[1745352777398,0.2974,91331.0,91330.0,0.18184]
[1745352777808,0.242,91331.0,91330.0,0.18384]
[1745352778302,0.242,91331.0,91330.0,0.37584]
[1745352778505,0.2961,91331.0,91330.0,0.37584]
[1745352780701,0.2961,91331.0,91330.0,0.34954]
[1745352781100,0.2961,91331.0,91330.0,0.15754]
[1745352781297,0.2961,91331.0,91330.0,0.14386014]
[1745352781502,0.2961,91331.0,91330.0,0.16816014]
[1745352781707,0.4055239,91331.0,91330.0,0.16816014]
[1745352781904,0.2961,91331.0,91330.0,0.16816014]
[1745352782211,0.0547193,91319.0,91315.0,0.07984]
[1745352782509,0.4702419,91316.0,91315.0,1e-08]
[1745352782711,0.7602419,91316.0,91315.0,1e-08]
[1745352784108,0.6508,91316.0,91315.0,1e-08]
[1745352784411,0.7602419,91316.0,91315.0,1e-08]
[1745352784705,0.8702419,91316.0,91315.0,1e-08]
[1745352784906,0.8722419,91316.0,91315.0,1e-08]
[1745352785405,0.7648,91316.0,91315.0,1e-08]
[1745352786402,0.7648,91316.0,91315.0,0.13594]
[1745352788908,0.7648,91316.0,91315.0,0.12499353]
[1745352790006,0.7648,91316.0,91315.0,0.07984]
[1745352790810,0.68594133,91316.0,91315.0,0.07984]
[1745352791009,0.294,91316.0,91315.0,0.344452]
[1745352791202,0.294,91316.0,91315.0,0.536452]
[1745352791507,0.294,91316.0,91315.0,0.52277054]
[1745352792014,0.294,91316.0,91315.0,0.77277054]
[1745352792410,0.16585566,91327.0,91315.0,0.77277054]
[1745352792713,0.20547,91325.0,91324.0,0.3608]
[1745352792910,0.2,91325.0,91324.0,0.4608]
[1745352793105,0.2,91325.0,91324.0,0.7623]
[1745352793609,0.202,91325.0,91324.0,0.7623]
[1745352794317,0.204,91325.0,91324.0,0.7623]
[1745352794816,0.204,91325.0,91324.0,0.7643]
[1745352795408,0.204,91325.0,91324.0,0.75335654]
[1745352797304,0.203,91325.0,91324.0,0.75535654]
[1745352798019,0.281,91325.0,91324.0,0.75535654]
[1745352798719,0.282,91325.0,91324.0,0.75735654]
[1745352799416,0.282,91325.0,91324.0,0.75335654]
[1745352799417,0.281,91325.0,91324.0,0.75335654]
[1745352799613,0.281,91325.0,91324.0,0.75435654]
[1745352799920,0.282,91325.0,91324.0,0.75635654]
[1745352801814,0.282,91325.0,91324.0,0.75935654]
[1745352802018,0.27652857,91325.0,91324.0,0.74841308]
[1745352804121,0.27552857,91325.0,91324.0,0.74541308]
[1745352804318,0.27652857,91325.0,91324.0,0.74841308]
[1745352804922,0.27652857,91325.0,91324.0,0.74641308]
[1745352805311,0.27552857,91325.0,91324.0,0.74341308]
[1745352805511,0.27652857,91325.0,91324.0,0.74641308]
[1745352805716,0.27552857,91325.0,91324.0,0.74341308]
[1745352805919,0.27652857,91325.0,91324.0,0.74641308]
[1745352806517,0.27552857,91325.0,91324.0,0.74341308]
[1745352806718,0.27652857,91325.0,91324.0,0.74641308]
[1745352808020,0.27652857,91325.0,91324.0,0.73547]
[1745352808721,0.27552857,91325.0,91324.0,0.71879121]
[1745352808925,0.27652857,91325.0,91324.0,0.72179121]
[1745352809520,0.27552857,91325.0,91324.0,0.71579121]
[1745352809714,0.27652857,91325.0,91324.0,0.72179121]
[1745352810715,0.27652857,91325.0,91324.0,0.84862]
[1745352812325,0.27452857,91325.0,91324.0,0.84262]
[1745352812522,0.27652857,91325.0,91324.0,0.84862]
[1745352813125,0.27552857,91325.0,91324.0,0.84862]
[1745352813330,0.27652857,91325.0,91324.0,0.84862]
[1745352814323,0.27652857,91325.0,91324.0,0.74862]
[1745352815027,0.27652857,91325.0,91324.0,0.63912]
[1745352818028,0.27652857,91325.0,91324.0,0.25205461]
[1745352818222,0.27652857,91325.0,91324.0,0.08632]
[1745352818726,0.27552857,91325.0,91324.0,0.08632]
[1745352818927,0.38262857,91325.0,91324.0,0.08632]
[1745352819332,0.47136704,91339.0,91324.0,0.08332]
[1745352819633,0.001,91325.0,91324.0,0.08632]
[1745352819932,0.282,91325.0,91324.0,0.08632]
[1745352820133,0.282,91325.0,91324.0,0.27832]
[1745352820534,0.28,91325.0,91324.0,0.27532]
[1745352820839,0.28,91325.0,91324.0,0.26737654]
[1745352821935,0.28,91325.0,91324.0,0.26437654]
[1745352822239,0.282,91325.0,91324.0,0.26937654]
[1745352822425,0.1113,91332.0,91324.0,0.26937654]
[1745352822629,0.001,91325.0,91324.0,0.26937654]
[1745352822930,0.2213,91332.0,91324.0,0.26937654]
[1745352822931,0.1113,91332.0,91324.0,0.27037654]
[1745352823131,0.3713,91332.0,91324.0,0.27037654]
[1745352823840,0.3713,91332.0,91324.0,0.25669802]
[1745352824938,0.3713,91332.0,91324.0,0.25269802]
[1745352825140,0.3733,91332.0,91324.0,0.25969802]
[1745352825937,0.3733,91332.0,91324.0,0.26069802]
[1745352826136,0.3733,91332.0,91325.0,0.08032]
[1745352827035,0.3733,91332.0,91325.0,0.06937712]
[1745352828237,0.3733,91332.0,91325.0,0.08137712]
[1745352828637,0.3733,91332.0,91330.0,0.3608]
[1745352829735,0.3723,91332.0,91330.0,0.3608]
[1745352829934,0.3733,91332.0,91330.0,0.3678]
[1745352830529,0.1642043,91331.0,91315.0,0.00016427]
[1745352830735,0.3608,91316.0,91315.0,0.00016427]
[1745352830929,0.6508,91316.0,91315.0,0.00016427]
[1745352831531,0.7553,91316.0,91315.0,0.00016427]
[1745352831933,0.7563,91316.0,91315.0,0.00616427]
[1745352832241,0.7563,91316.0,91315.0,0.08620427]
[1745352832537,0.7573,91316.0,91315.0,0.09220427]
[1745352833143,0.8667419,91316.0,91315.0,0.09220427]
[1745352833733,0.9186419,91316.0,91315.0,0.08125818]
[1745352833933,0.8092,91316.0,91315.0,0.08125818]
[1745352839750,0.8092,91316.0,91315.0,0.07031172]
[1745352841145,0.4484,91316.0,91315.0,0.07031172]
[1745352841734,0.4484,91316.0,91315.0,0.12381172]
[1745352841936,0.4484,91316.0,91315.0,0.11012943]
[1745352843243,0.4484,91316.0,91315.0,0.05662943]
[1745352844646,0.4484,91316.0,91315.0,0.10922943]
[1745352845437,0.292,91316.0,91315.0,0.10922943]
[1745352845637,0.292,91316.0,91315.0,0.16112943]
[1745352846243,0.292,91316.0,91315.0,0.34218368]
[1745352848251,0.292,91316.0,91315.0,0.29028368]
[1745352849250,0.292,91316.0,91315.0,0.04568368]
[1745352850546,0.3975,91316.0,91315.0,0.04568368]
[1745352851145,0.3975,91316.0,91315.0,0.09808368]
[1745352852552,0.3975,91316.0,91315.0,0.0871372]
[1745352853656,0.3975,91316.0,91315.0,0.0347372]
[1745352854049,0.3975,91316.0,91315.0,0.0888372]
[1745352854543,0.3975,91316.0,91315.0,0.06256777]
[1745352854751,0.3975,91316.0,91315.0,0.12892574]
[1745352856751,0.3975,91316.0,91315.0,0.08004]
[1745352858053,0.3975,91316.0,91315.0,0.12934]
[1745352859247,0.3975,91316.0,91315.0,0.11839433]
[1745352860451,0.3965,91316.0,91315.0,0.11839433]
[1745352860651,0.3975,91316.0,91315.0,0.11839433]
[1745352861750,0.3965,91316.0,91315.0,0.11839433]
[1745352861949,0.3975,91316.0,91315.0,0.11839433]
[1745352862554,0.3975,91316.0,91315.0,0.09212472]
[1745352862752,0.3975,91316.0,91315.0,0.0729698]
[1745352865257,0.3975,91316.0,91315.0,0.05928757]
[1745352865849,0.292,91316.0,91315.0,0.17746179]
[1745352866253,0.292,91316.0,91315.0,0.36946179]
[1745352868450,0.291,91316.0,91315.0,0.36946179]
[1745352868650,0.292,91316.0,91315.0,0.36946179]
[1745352870856,0.291,91316.0,91315.0,0.36946179]
[1745352871261,0.292,91316.0,91315.0,0.36946179]
[1745352872060,0.292,91316.0,91315.0,0.35851709]
[1745352872858,0.291,91316.0,91315.0,0.35851709]
[1745352873252,0.292,91316.0,91315.0,0.35851709]
[1745352873454,0.291,91316.0,91315.0,0.35851709]
[1745352873654,0.292,91316.0,91315.0,0.35851709]
[1745352874563,0.291,91316.0,91315.0,0.35851709]
[1745352874761,0.292,91316.0,91315.0,0.35851709]
[1745352876961,0.29,91316.0,91315.0,0.35851709]
[1745352877166,0.292,91316.0,91315.0,0.35851709]
[1745352877370,0.292,91316.0,91315.0,0.3448362]
[1745352878170,0.292,91316.0,91315.0,0.33389149]
[1745352878554,0.292,91316.0,91315.0,0.30762421]
[1745352883357,0.291,91316.0,91315.0,0.30762421]
[1745352883568,0.292,91316.0,91315.0,0.30762421]
[1745352884065,0.0117852,91316.0,91315.0,0.30762421]
[1745352884271,0.0127852,91316.0,91315.0,0.29667952]
[1745352884666,0.0599852,91316.0,91315.0,0.29667952]
[1745352885571,0.0589852,91316.0,91315.0,0.29667952]
[1745352885762,0.0599852,91316.0,91315.0,0.29667952]
[1745352886167,0.0589852,91316.0,91315.0,0.29667952]
[1745352886470,0.0599852,91316.0,91315.0,0.29667952]
[1745352887064,0.0599852,91316.0,91315.0,0.10467952]
[1745352887264,0.0599852,91316.0,91315.0,0.08052]
[1745352887567,0.0599852,91316.0,91312.0,0.192]
[1745352887767,0.0506,91315.0,91312.0,0.192]
[1745352887959,0.3306,91315.0,91313.0,0.0668391]
[1745352888160,0.0502,91314.0,91313.0,0.07505388]
[1745352888360,0.3002,91314.0,91313.0,0.07505388]
[1745352888563,0.3002,91314.0,91313.0,0.12505388]
[1745352889169,0.3002,91314.0,91313.0,0.31705388]
[1745352889471,0.3012,91314.0,91313.0,0.31705388]
[1745352889658,0.3022,91314.0,91313.0,0.31705388]
[1745352890260,0.3022,91314.0,91313.0,0.67785388]
[1745352890858,0.3022,91314.0,91313.0,0.66690916]
[1745352891669,0.252,91314.0,91313.0,0.66690916]
[1745352891869,0.21434663,91314.0,91313.0,0.66690916]
[1745352892269,0.20949642,91314.0,91313.0,0.66690916]
[1745352892470,0.20402426,91314.0,91313.0,0.66690916]
[1745352892669,0.18385548,91314.0,91313.0,0.66690916]
[1745352892870,0.16491582,91314.0,91313.0,0.66690916]
[1745352893075,0.16691582,91314.0,91313.0,0.66690916]
[1745352893271,0.12811421,91314.0,91313.0,0.66690916]
[1745352893483,0.08981215,91314.0,91313.0,0.66690916]
[1745352893769,0.0515101,91314.0,91313.0,0.66690916]
[1745352894563,0.02355013,91314.0,91313.0,0.66690916]
[1745352895679,0.28,91314.0,91313.0,0.66690916]
[1745352895973,0.282,91314.0,91313.0,0.66690916]
[1745352896477,0.281,91314.0,91313.0,0.66690916]
[1745352896676,0.282,91314.0,91313.0,0.66690916]
[1745352897075,0.282,91314.0,91313.0,0.65596496]
[1745352898069,0.281,91314.0,91313.0,0.65596496]